bitfinex/quotes_ETHUSD_20241116
["timestamp","ask_amount","ask_price","bid_price","bid_amount"]
[1731763657695,3.14229,3182.4,3181.6,0.05329648]
[1731763657869,3.43406241,3182.3,3181.6,0.05329648]
[1731763658192,3.43415241,3182.2,3181.6,0.05329648]
[1731763658378,0.29162241,3182.1,3181.6,0.05329648]
[1731763658574,3.14253,3182.2,3181.6,0.11615147]
[1731763658782,3.14253,3182.2,3181.6,3.19632648]
[1731763659004,3.14229,3182.4,3181.6,0.05329648]
[1731763659289,3.14256,3182.2,3181.4,3.14321]
[1731763659590,3.14279,3181.9,3181.7,0.05326384]
[1731763659890,3.14296,3181.8,3181.1,3.14354]
[1731763660076,3.14296,3181.8,3181.1,4.05885956]
[1731763660454,3.143,3181.7,3181.1,3.91531956]
[1731763660867,3.14279,3181.9,3181.1,4.05880956]
[1731763661070,0.29164296,3181.8,3181.1,3.14349]
[1731763661297,3.43452296,3181.8,3180.9,6.14374]
[1731763661508,3.43452296,3181.8,3181.0,3.14366]
[1731763661509,3.14305,3181.7,3181.0,3.14366]
[1731763661661,3.14305,3181.7,3181.0,4.37337656]
[1731763661860,3.14305,3181.7,3181.1,3.14353]
[1731763662370,3.14305,3181.7,3181.0,4.37337656]
[1731763662693,3.14283,3181.9,3181.0,4.37337656]
[1731763662894,0.29174459,3181.8,3181.2,3.1434]
[1731763663254,3.43462459,3181.8,3181.1,0.73733766]
[1731763663453,0.29174459,3181.7,3181.1,3.88083766]
[1731763663654,0.29174459,3181.7,3181.2,0.70244977]
[1731763664459,3.43478459,3181.7,3181.2,0.70244977]
[1731763664657,3.43478459,3181.7,3181.1,0.73733766]
[1731763664658,0.29178475,3181.6,3181.1,0.73733766]
[1731763664864,3.14304,3181.7,3181.1,0.73733766]
[1731763665052,3.14304,3181.7,3180.9,3.0]
[1731763665397,3.14353,3181.2,3180.6,0.30096556]
[1731763665594,3.14353,3181.2,3180.7,0.02]
[1731763666411,3.14364,3181.1,3180.7,0.02]
[1731763666560,3.14364,3181.1,3180.5,3.0]
[1731763667072,3.14364,3181.1,3180.4,3.14425]
[1731763667612,3.14393,3180.8,3180.1,3.14451]
[1731763667759,3.14393,3180.8,3180.2,0.92987956]
[1731763668174,3.14393,3180.8,3180.2,3.92987956]
[1731763668414,3.15295,3181.8,3180.2,3.92987956]
[1731763668415,0.01,3181.9,3180.2,0.92987956]
[1731763668711,3.14297,3181.7,3180.7,3.14396]
[1731763668909,3.14279,3181.9,3181.2,3.14343]
[1731763669082,3.14294,3181.8,3181.0,3.14366]
[1731763669284,3.14294,3181.8,3181.1,0.61533156]
[1731763669618,3.14304,3181.7,3181.1,0.61533156]
[1731763669820,3.14294,3181.8,3181.1,0.61533156]
[1731763669982,3.43495239,3181.7,3181.1,0.61533156]
[1731763670390,3.14308,3181.6,3181.2,0.04824854]
[1731763671614,3.14242,3182.3,3181.2,0.04824854]
[1731763671615,3.14336,3181.3,3181.2,0.04824854]
[1731763671918,3.69336,3181.3,3181.2,0.04824854]
[1731763672088,3.1438,3180.9,3180.2,3.14442]
[1731763672276,3.1438,3180.9,3180.3,0.314442]
[1731763672476,3.1438,3180.9,3180.3,0.36135438]
[1731763672675,3.15292,3181.8,3180.3,0.36135438]
[1731763672676,3.14331,3181.4,3180.6,3.14404]
[1731763672877,3.14331,3181.4,3180.8,3.14379]
[1731763673072,0.55,3182.1,3180.9,3.19041189]
[1731763673319,3.14304,3181.7,3180.9,3.19041189]
[1731763673621,0.55,3181.8,3181.0,3.14366]
[1731763673823,3.14307,3181.6,3181.0,3.14366]
[1731763673980,3.14307,3181.6,3181.1,0.04668681]
[1731763674719,3.14287,3181.8,3181.1,0.04668681]
[1731763674918,0.55,3182.1,3181.1,0.04668681]
[1731763674919,3.1427,3182.0,3181.1,0.36572149]
[1731763675075,3.14278,3181.9,3181.3,3.14336]
[1731763675622,0.29344487,3181.8,3181.4,0.04658499]
[1731763675915,0.29344487,3181.7,3181.4,0.04658499]
[1731763676224,0.29344487,3181.6,3181.1,3.46254468]
[1731763676521,3.14287,3181.8,3181.5,0.04653985]
[1731763676687,3.14287,3181.8,3181.6,0.04648802]
[1731763676891,3.43654218,3181.7,3181.6,0.04648802]
[1731763677099,3.43654218,3181.7,3181.6,0.04648417]
[1731763677680,3.14307,3181.6,3180.9,3.14371]
[1731763677895,0.29357218,3181.5,3181.0,0.628754]
[1731763678179,0.29357218,3181.4,3181.0,0.628754]
[1731763678407,0.29357218,3181.3,3181.0,0.628754]
[1731763678620,3.14325,3181.5,3180.8,3.14384]
[1731763678621,0.29357218,3181.2,3180.8,3.14384]
[1731763678787,0.29357218,3181.1,3180.8,3.14384]
[1731763679112,0.29357218,3181.0,3180.8,0.99128861]
[1731763679322,0.29357218,3180.9,3180.7,3.75924056]
[1731763679476,0.29357218,3180.8,3180.7,3.14387]
[1731763680481,0.29357218,3180.8,3180.6,3.0]
[1731763680716,0.29357218,3180.7,3180.3,3.14432]
[1731763681023,0.01,3181.8,3180.3,0.92984956]
[1731763681024,3.14377,3180.9,3180.3,0.92984956]
[1731763681175,0.29379296,3180.6,3180.1,3.14452]
[1731763681374,3.43769296,3180.8,3180.1,3.14452]
[1731763681577,3.14326,3181.5,3179.8,3.14477]
[1731763681578,0.29379296,3180.7,3179.8,3.14477]
[1731763681789,3.14423,3180.5,3179.8,3.14477]
[1731763682021,3.14423,3180.5,3179.8,3.773751]
[1731763682225,0.29379296,3180.4,3179.8,3.773751]
[1731763682384,0.29379296,3180.3,3179.8,0.628981]
[1731763682578,0.29379296,3180.2,3179.8,0.628981]
[1731763682786,0.29379296,3180.1,3179.9,3.14473]
[1731763683029,0.29379296,3180.0,3179.9,3.14473]
[1731763683331,0.29379296,3180.0,3179.9,3.773696]
[1731763683497,3.14388,3180.8,3180.1,3.14454]
[1731763683685,0.2934755,3180.7,3180.1,3.14454]
[1731763683886,0.2934755,3180.6,3180.1,3.14454]
[1731763684125,0.2934755,3180.5,3180.1,3.14454]
[1731763684286,0.2934755,3180.4,3180.1,3.14454]
[1731763684486,0.2934755,3180.3,3180.1,3.14454]
[1731763684717,0.2934755,3180.2,3180.1,3.773467]
[1731763684899,3.14321,3181.5,3180.2,3.0]
[1731763685116,3.14321,3181.5,3180.8,3.14384]
[1731763685117,0.29335586,3181.4,3180.8,3.14384]
[1731763685284,0.29335586,3181.3,3180.6,3.14405]
[1731763685483,0.29335586,3181.2,3180.9,0.04683584]
[1731763685718,0.29335586,3181.2,3180.2,3.0]
[1731763685719,3.43698586,3181.1,3180.2,3.0]
[1731763685925,3.14363,3181.1,3181.0,0.04683439]
[1731763686127,3.43703235,3181.1,3180.2,6.1444]
[1731763686333,3.14383,3180.9,3180.2,7.37425956]
[1731763686634,0.29340235,3180.8,3180.5,3.14415]
[1731763686792,0.29340235,3180.7,3180.5,3.14415]
[1731763686994,3.14339,3181.3,3180.7,3.14392]
[1731763687309,0.29341302,3181.2,3180.7,3.14392]
[1731763687513,0.29341302,3181.1,3180.8,0.04683384]
[1731763687716,0.29341302,3181.0,3180.8,0.04683384]
[1731763688025,0.29341302,3180.9,3180.8,0.04683384]
[1731763688534,0.29341302,3180.9,3180.6,3.14405]
[1731763688735,3.14347,3181.2,3180.8,0.04679303]
[1731763689031,0.29350111,3181.1,3180.9,0.04678773]
[1731763689206,0.29350111,3181.0,3180.9,0.04678773]
[1731763689404,0.29350111,3181.0,3180.6,3.14405]
[1731763689597,0.29350111,3180.9,3180.6,0.314405]
[1731763689792,3.14339,3181.3,3180.5,3.14409]
[1731763689793,0.29350111,3180.8,3180.5,3.14409]
[1731763690101,0.29350111,3180.7,3180.6,3.14404]
[1731763691335,0.29350111,3180.7,3180.6,3.772869]
[1731763691515,0.29350111,3180.7,3180.6,6.772869]
[1731763692517,3.14294,3181.8,3180.9,3.14372]
[1731763692813,0.2936079,3181.7,3181.2,3.14344]
[1731763693006,0.2936079,3181.6,3181.2,3.14344]
[1731763693206,0.2936079,3181.5,3181.2,3.14344]
[1731763693406,0.2936079,3181.4,3181.2,3.14344]
[1731763693730,0.2936079,3181.3,3181.2,3.14344]
[1731763693933,0.29359542,3181.3,3181.2,3.14344]
[1731763694136,0.29359542,3181.3,3181.2,3.75874956]
[1731763695822,0.29359542,3181.3,3181.2,0.61530956]
[1731763696016,0.29359542,3181.3,3181.0,3.1436]
[1731763696217,0.29359542,3181.2,3181.0,3.1436]
[1731763696445,0.29359542,3181.1,3181.0,3.1436]
[1731763696823,0.29359542,3181.1,3180.8,3.14386]
[1731763697022,0.29359542,3181.1,3180.9,0.61535156]
[1731763697222,0.29359542,3181.0,3180.9,0.61535156]
[1731763697546,0.29363092,3181.0,3180.9,0.61535156]
[1731763697847,0.29363092,3181.0,3180.6,3.772859]
[1731763698073,0.29363092,3180.9,3180.6,0.628829]
[1731763698207,0.29363092,3180.8,3180.6,3.14404]
[1731763698413,0.29363092,3180.7,3180.5,3.0]
[1731763698614,0.29363092,3180.6,3180.5,3.14415]
[1731763698850,0.29363092,3180.6,3180.5,3.458565]
[1731763700246,0.29363092,3180.6,3180.5,3.50533836]
[1731763700610,3.14339,3181.3,3180.5,3.50533836]
[1731763700849,0.29369709,3181.2,3180.5,3.50533836]
[1731763701056,0.29369709,3181.1,3180.5,3.50533836]
[1731763701215,0.29369709,3181.0,3180.5,3.50533836]
[1731763701416,0.29369709,3180.9,3180.6,3.79553939]
[1731763701652,0.29369709,3180.8,3180.6,3.79553939]
[1731763701843,0.29369709,3180.7,3180.6,3.14404]
[1731763702414,3.14347,3181.2,3180.6,3.14404]
[1731763702713,3.14318,3181.5,3180.4,3.00965556]
[1731763702714,0.29370684,3181.1,3180.4,3.00965556]
[1731763703047,0.29370684,3181.0,3180.7,3.14386]
[1731763703253,0.29370684,3180.9,3180.7,3.14386]
[1731763703436,3.14318,3181.5,3180.8,3.49463918]
[1731763703643,0.293709,3181.4,3180.8,3.49463918]
[1731763703842,0.293709,3181.3,3180.8,0.35077918]
[1731763704051,0.293709,3181.2,3180.7,3.14395]
[1731763704421,0.293709,3181.1,3180.7,3.14395]
[1731763704738,0.293709,3181.0,3180.7,3.14395]
[1731763704942,0.293709,3180.9,3180.7,3.14395]
[1731763705118,0.293709,3180.8,3180.7,3.14395]
[1731763705314,0.293709,3180.8,3180.7,7.10285656]
[1731763707623,3.14308,3181.6,3180.7,7.10285656]
[1731763707861,0.2937961,3180.8,3180.7,6.14395]
[1731763710278,0.2937961,3180.8,3180.2,3.14438]
[1731763710422,0.2937961,3180.8,3180.0,6.15429556]
[1731763710423,3.14409,3180.6,3180.1,3.0]
[1731763710778,0.2937961,3180.5,3180.1,3.0]
[1731763710922,0.2937961,3180.4,3180.1,3.91542956]
[1731763711465,0.2937961,3180.3,3179.8,3.14482]
[1731763711621,0.2937961,3180.2,3179.7,6.15458556]
[1731763711828,0.2937961,3180.1,3180.0,3.14456]
[1731763712127,0.2937961,3180.1,3179.8,3.14482]
[1731763712321,0.2937961,3180.0,3179.8,3.76655631]
[1731763712628,0.2937961,3179.9,3179.8,6.57619157]
[1731763712847,0.2937961,3179.9,3179.8,2.95445526]
[1731763713778,0.2937961,3179.9,3179.7,3.00965556]
[1731763713949,3.14421,3180.5,3179.8,3.14485]
[1731763714151,0.29386932,3180.4,3179.8,3.14485]
[1731763714338,0.29386932,3180.3,3179.9,3.2076009]
[1731763714542,0.29386932,3180.2,3179.9,3.2076009]
[1731763714749,0.29386932,3180.1,3179.9,3.2076009]
[1731763714977,3.14416,3180.5,3179.9,3.2076009]
[1731763714978,0.29386932,3180.0,3179.9,3.2076009]
[1731763715277,0.29386932,3180.0,3179.9,7.14381955]
[1731763715479,3.1437,3181.0,3180.3,3.14435]
[1731763715680,3.14347,3181.2,3180.3,3.14435]
[1731763715681,3.4374768,3180.9,3180.3,3.14435]
[1731763715985,0.2937068,3180.8,3180.4,0.03134959]
[1731763716197,0.2937068,3180.7,3180.4,0.03134959]
[1731763716370,0.2937068,3180.6,3180.4,0.03134959]
[1731763716553,0.2937068,3180.5,3180.4,0.03134959]
[1731763716760,0.2937068,3180.5,3180.1,6.15413556]
[1731763717074,0.2937068,3180.4,3180.2,3.17586298]
[1731763717249,0.2937068,3180.3,3180.2,3.17586298]
[1731763718492,0.29367108,3180.3,3180.2,3.17586298]
[1731763719065,0.29367108,3180.3,3180.2,0.03141298]
[1731763720158,0.29367108,3180.3,3179.9,3.93621865]
[1731763720355,0.29367108,3180.2,3179.6,6.15468556]
[1731763720650,0.29367108,3180.1,3179.7,6.17540742]
[1731763720960,0.29367108,3180.0,3179.7,6.17540742]
[1731763721273,3.14439,3180.3,3179.7,6.17540742]
[1731763721274,0.29367108,3179.9,3179.7,6.17540742]
[1731763721475,0.29367108,3179.8,3179.7,7.10746216]
[1731763721661,3.14422,3180.5,3179.7,7.10746216]
[1731763721662,3.14422,3180.5,3179.7,6.17540742]
[1731763721862,3.43788608,3180.4,3179.7,6.17540742]
[1731763722087,0.29360608,3180.3,3179.7,6.17540742]
[1731763722396,0.29360608,3180.2,3179.7,6.17540742]
[1731763722551,0.29360608,3180.1,3179.7,6.17540742]
[1731763722876,0.29360608,3180.0,3179.7,6.17540742]
[1731763723076,0.29360608,3179.9,3179.7,7.40842772]
[1731763723391,0.29360608,3179.8,3179.7,7.40842772]
[1731763723703,0.29360608,3179.8,3179.7,6.17540742]
[1731763724662,0.29355102,3179.8,3179.7,6.17540742]
[1731763725284,0.29355078,3179.8,3179.7,6.17540742]
[1731763727675,3.43840078,3179.8,3179.7,0.03046742]
[1731763728105,3.43840078,3179.8,3179.2,3.14537]
[1731763728399,3.14472,3180.0,3179.3,3.14532]
[1731763728607,0.29352751,3179.9,3178.9,3.00965556]
[1731763728808,0.29352751,3179.9,3179.2,3.14543]
[1731763728809,0.29352751,3179.8,3179.2,3.14543]
[1731763729103,0.29352751,3179.7,3179.3,3.03044743]
[1731763729316,0.29352751,3179.6,3179.3,3.03044743]
[1731763729482,0.29352751,3179.5,3179.3,3.03044743]
[1731763729667,3.14481,3179.9,3179.3,3.03044743]
[1731763729870,0.29345276,3179.8,3179.3,3.03044743]
[1731763730072,0.29345276,3179.7,3179.3,3.03044743]
[1731763730394,0.29345276,3179.6,3179.3,3.17577743]
[1731763730706,0.29345276,3179.5,3179.3,3.17577743]
[1731763730902,3.14481,3179.9,3179.3,3.17577743]
[1731763731107,0.29339549,3179.8,3179.3,3.17577743]
[1731763731267,3.14481,3179.9,3179.3,3.17577743]
[1731763731268,0.29339549,3179.7,3179.3,3.17577743]
[1731763731466,3.14481,3179.9,3179.3,0.03044743]
[1731763731866,0.2933462,3179.8,3179.3,3.0]
[1731763732067,3.4382962,3179.7,3179.4,0.03041018]
[1731763732296,3.14514,3179.5,3179.4,0.03041018]
[1731763732499,3.14539,3179.3,3178.6,3.2918872]
[1731763732811,0.2933462,3179.2,3178.6,3.80005586]
[1731763732976,0.2933462,3179.1,3178.7,0.03074257]
[1731763733181,0.2933462,3179.0,3178.7,0.03074257]
[1731763733380,3.14549,3179.2,3178.7,0.03074257]
[1731763733584,3.14564,3179.0,3178.7,0.03074257]
[1731763733917,3.14521,3179.5,3178.7,0.03074257]
[1731763733918,3.14584,3178.8,3178.7,0.03074257]
[1731763734111,3.43913942,3178.8,3178.7,0.03074257]
[1731763734883,3.14594,3178.7,3178.6,0.1459172]
[1731763735203,3.43923942,3178.7,3178.6,0.17480527]
[1731763735370,3.43896212,3178.7,3178.6,0.17480527]
[1731763735594,3.43896212,3178.7,3178.6,0.1459172]
[1731763736109,3.43896212,3178.7,3178.6,0.17479554]
[1731763736110,3.98896212,3178.7,3178.6,0.17479554]
[1731763736428,3.43896212,3178.7,3178.6,0.1459172]
[1731763736926,3.43896212,3178.7,3178.6,0.17583719]
[1731763737428,3.43896212,3178.7,3178.6,0.1459172]
[1731763738686,0.8540828,3178.0,3177.7,3.20984167]
[1731763738887,0.8540828,3178.0,3177.9,3.14673]
[1731763740399,0.8540828,3178.0,3177.6,0.91566756]
[1731763740611,0.8083828,3178.0,3177.8,3.14681]
[1731763741011,0.8083828,3178.0,3177.6,0.91566756]
[1731763741206,0.7331828,3178.0,3177.7,3.14691]
[1731763741633,0.7331828,3178.0,3177.9,3.14673]
[1731763741840,0.7331828,3178.0,3177.9,9.15638556]
[1731763743721,0.7331828,3178.0,3177.9,9.72638556]
[1731763744161,0.7331828,3178.0,3177.9,44.72638556]
[1731763744374,2.8e-06,3178.0,3177.9,47.86738503]
[1731763745324,2.8e-06,3178.0,3177.9,48.35767086]
[1731763745551,2.8e-06,3178.0,3177.9,48.49105174]
[1731763746627,0.29230743,3179.4,3179.3,3.14534]
[1731763746823,0.29230743,3180.1,3179.2,3.00965556]
[1731763747065,14.91294556,3181.4,3179.5,3.14511]
[1731763747066,0.29230743,3180.0,3179.5,3.14511]
[1731763747376,0.29230743,3179.9,3179.4,0.06289608]
[1731763747666,3.43656743,3180.4,3179.7,3.14488]
[1731763747871,3.43656743,3180.4,3179.5,3.14513]
[1731763747872,0.29230743,3180.3,3179.8,3.14483]
[1731763748068,0.29230743,3180.2,3179.8,6.28961]
[1731763748285,0.29230743,3180.1,3179.8,3.14478]
[1731763748564,3.14413,3180.6,3179.9,3.14474]
[1731763748724,0.29247515,3180.5,3179.7,3.1449]
[1731763748927,3.15357,3181.1,3179.7,3.1449]
[1731763748928,3.43673515,3180.4,3179.7,3.1449]
[1731763749271,3.14408,3180.6,3179.6,3.14503]
[1731763749272,0.29247515,3180.3,3179.8,3.14475]
[1731763749467,0.29247515,3180.2,3179.8,3.14475]
[1731763749769,0.29247515,3180.1,3180.0,3.14465]
[1731763749968,3.14344,3181.3,3180.0,3.14465]
[1731763749969,0.29252952,3180.7,3180.2,3.14442]
[1731763750132,0.29252952,3180.6,3180.2,3.14442]
[1731763750323,0.29252952,3180.5,3180.0,3.14465]
[1731763750524,0.29252952,3180.4,3180.2,3.14445]
[1731763750739,3.14388,3180.8,3180.2,3.14445]
[1731763750986,0.29249672,3180.7,3179.8,3.00965556]
[1731763751136,0.29249672,3180.6,3180.1,3.14454]
[1731763751601,0.29249672,3180.5,3180.1,3.14454]
[1731763751743,3.14384,3180.9,3180.1,3.14454]
[1731763752049,3.14384,3180.9,3180.2,3.1444]
[1731763752050,0.29246786,3180.8,3180.2,3.1444]
[1731763752252,0.29246786,3180.7,3180.2,3.1444]
[1731763752469,0.29246786,3180.6,3180.2,3.1444]
[1731763752644,3.14384,3180.9,3180.2,3.1444]
[1731763752844,0.29242927,3180.8,3180.2,3.1444]
[1731763753071,0.29242927,3180.7,3180.0,3.1446]
[1731763753278,0.01,3181.2,3179.8,3.14481]
[1731763753279,0.29242927,3180.6,3179.8,3.14481]
[1731763753503,3.14441,3180.3,3179.3,6.14525]
[1731763753791,0.29244771,3180.2,3179.6,3.0]
[1731763753949,0.29245645,3180.1,3179.6,3.0]
[1731763754156,3.14457,3180.1,3179.4,3.59523]
[1731763754425,0.29245215,3180.0,3179.4,3.59523]
[1731763754592,0.01,3180.5,3179.4,0.45]
[1731763754777,3.14475,3179.9,3179.4,0.45]
[1731763754985,0.55,3180.7,3179.4,0.45]
[1731763754986,3.14438,3180.3,3179.4,0.45]
[1731763755157,0.29247709,3180.2,3179.6,3.14504]
[1731763755358,3.43703709,3180.1,3179.4,3.14523]
[1731763755592,0.29247709,3180.0,3179.4,3.14523]
[1731763755895,3.14456,3180.1,3179.4,3.14523]
[1731763756258,0.2924966,3180.0,3179.4,3.14523]
[1731763756598,3.14456,3180.1,3179.4,3.14523]
[1731763756767,3.16394,3180.8,3179.2,6.14541]
[1731763756768,0.29251308,3180.0,3179.5,3.14513]
[1731763756954,0.29251308,3179.9,3179.3,3.14534]
[1731763757156,3.14427,3180.4,3179.7,3.14494]
[1731763757392,0.29252101,3180.3,3179.7,3.14494]
[1731763757599,0.29252101,3180.2,3179.7,3.14494]
[1731763757758,0.61333952,3181.4,3180.1,3.0]
[1731763758092,3.14355,3181.2,3180.6,3.00965556]
[1731763758299,0.29244393,3181.1,3180.7,6.28774]
[1731763758502,0.29244393,3181.4,3180.7,3.14386]
[1731763758663,0.29244393,3181.3,3180.7,3.14386]
[1731763759012,0.29244393,3181.4,3180.8,3.14384]
[1731763759161,0.29244393,3181.4,3180.6,3.14403]
[1731763759162,0.29244393,3181.3,3180.6,3.14403]
[1731763759367,3.43581393,3181.3,3180.6,3.14403]
[1731763759602,3.14337,3181.3,3180.7,3.14393]
[1731763759805,3.14309,3181.6,3180.6,3.14403]
[1731763759973,0.29208113,3181.5,3180.8,3.14385]
[1731763760297,3.14317,3181.5,3180.8,3.14385]
[1731763760505,0.29208113,3181.4,3180.8,3.14385]
[1731763761359,0.29208113,3181.4,3180.6,3.14403]
[1731763761698,3.14339,3181.3,3180.6,3.14403]
[1731763762003,3.14318,3181.5,3180.7,3.14393]
[1731763762201,0.29180375,3181.4,3180.7,3.14393]
[1731763762562,3.14339,3181.3,3180.6,3.14401]
[1731763763502,3.1437,3181.0,3180.4,3.0]
[1731763763672,3.1437,3181.0,3180.4,6.14423]
[1731763763999,3.0462,3181.0,3180.4,6.14423]
[1731763764378,3.01965556,3181.3,3179.2,1.256923]
[1731763764573,3.14374,3181.0,3180.2,3.14444]
[1731763764770,3.14386,3180.8,3180.2,3.14444]
[1731763764976,0.29166871,3180.7,3180.2,3.14444]
[1731763765159,0.29166871,3180.7,3180.0,3.14465]
[1731763765361,0.29166871,3180.7,3179.8,3.14483]
[1731763765606,3.14366,3181.0,3180.0,3.14464]
[1731763765824,3.14407,3180.6,3179.8,3.14483]
[1731763766686,3.14418,3180.5,3179.8,3.14483]
[1731763767029,3.14394,3180.8,3180.0,3.14462]
[1731763767230,3.4358785,3180.7,3180.0,3.14462]
[1731763767434,3.14379,3180.9,3180.1,3.14451]
[1731763767722,3.14398,3180.7,3180.1,3.14451]
[1731763767918,3.14398,3180.7,3179.9,3.14473]
[1731763768082,3.02968,3180.7,3179.9,3.14473]
[1731763768282,0.29218998,3180.6,3179.9,3.14473]
[1731763768925,3.43625998,3180.6,3179.8,3.14483]
[1731763769081,3.43625998,3180.6,3179.9,3.14473]
[1731763769288,0.29218998,3180.5,3179.9,3.14473]
[1731763769483,0.29218998,3180.4,3179.9,3.14473]
[1731763769689,0.29218998,3180.5,3179.9,3.14473]
[1731763769992,0.29218998,3180.4,3179.9,3.14473]
[1731763770192,0.29218998,3180.5,3179.9,3.14473]
[1731763770498,0.29218998,3180.4,3179.9,3.14473]
[1731763770691,3.14407,3180.6,3179.9,3.14473]
[1731763770692,0.29218998,3180.5,3179.9,3.14473]
[1731763770998,0.29247118,3180.4,3179.9,3.14473]
[1731763771194,0.29247118,3180.5,3179.9,3.14473]
[1731763771399,0.29250342,3180.4,3179.9,3.14473]
[1731763771595,0.29273982,3180.3,3179.9,3.14473]
[1731763771798,3.14407,3180.6,3179.9,3.14473]
[1731763771991,0.29274046,3180.5,3179.9,3.14473]
[1731763772310,0.29274046,3180.4,3180.0,3.14465]
[1731763772514,0.29274046,3180.3,3180.0,3.14465]
[1731763772700,0.29274046,3180.2,3180.0,3.14465]
[1731763773023,3.14397,3180.7,3180.0,3.14465]
[1731763773199,0.29292467,3180.6,3180.0,3.14465]
[1731763773405,0.29292467,3180.5,3180.0,3.14465]
[1731763773735,0.29292467,3180.4,3180.0,3.14465]
[1731763774016,0.29292467,3180.3,3180.0,3.14465]
[1731763774217,0.29292467,3180.2,3180.0,3.14465]
[1731763774516,0.29292467,3180.1,3180.0,3.14465]
[1731763775188,3.14409,3180.6,3180.0,3.14465]
[1731763775388,0.29336424,3180.1,3180.0,3.14465]
[1731763776716,3.14409,3180.6,3180.0,3.14465]
[1731763777023,0.29352443,3180.5,3180.0,3.14465]
[1731763777229,0.29352443,3180.4,3180.0,3.14465]
[1731763777542,3.14388,3180.8,3179.3,3.14526]
[1731763777543,3.43788443,3180.3,3179.3,3.14526]
[1731763777737,3.14465,3180.0,3179.4,0.45]
[1731763778027,0.29352443,3179.9,3179.4,0.45]
[1731763778227,0.29352443,3179.8,3179.4,0.45]
[1731763778426,0.29352443,3179.7,3179.3,3.14526]
[1731763778738,0.29358123,3179.6,3178.7,3.00965556]
[1731763778937,0.29358123,3179.5,3179.0,3.14561]
[1731763779233,0.29358123,3179.4,3178.8,3.14575]
[1731763779401,0.29358123,3179.3,3178.8,3.14575]
[1731763779591,0.29358123,3179.2,3178.8,3.14575]
[1731763779791,0.29358123,3179.1,3178.8,3.14575]
[1731763780015,0.29358123,3179.1,3178.9,3.14572]
[1731763780217,0.29358123,3179.0,3178.9,3.14572]
[1731763780493,0.29358123,3179.0,3178.7,3.14586]
[1731763780689,0.29339829,3178.9,3178.7,3.14586]
[1731763780895,3.14526,3179.4,3178.5,3.1461]
[1731763781089,0.29339593,3179.3,3178.8,3.14583]
[1731763781294,3.14526,3179.4,3178.6,3.61461]
[1731763781295,0.29339593,3179.2,3178.6,6.14597]
[1731763781525,0.29339593,3179.1,3178.6,6.14597]
[1731763781694,0.29339593,3179.0,3178.6,6.14597]
[1731763781890,3.14526,3179.4,3178.6,7.075177]
[1731763782207,0.29327461,3179.3,3178.7,3.14584]
[1731763782409,0.29327461,3179.2,3178.6,7.075187]
[1731763782736,0.29327461,3179.1,3178.6,7.075187]
[1731763782907,0.29327461,3179.0,3178.6,7.075187]
[1731763783103,3.14535,3179.3,3178.6,7.075187]
[1731763783300,0.29315889,3179.2,3178.7,1.0221287]
[1731763783501,0.29315889,3179.1,3178.6,6.14598]
[1731763783731,0.29315889,3179.0,3178.6,6.14598]
[1731763783933,3.14535,3179.3,3178.6,6.14598]
[1731763784094,0.29307038,3179.2,3178.6,6.14598]
[1731763784416,0.29307038,3179.1,3178.6,6.760578]
[1731763784618,0.29307038,3179.0,3178.6,3.614598]
[1731763784823,0.29297703,3178.9,3178.1,3.14644]
[1731763785020,0.29297703,3178.8,3178.3,3.14626]
[1731763785330,3.14551,3179.2,3178.3,3.79853]
[1731763785496,0.29286196,3179.1,3178.5,3.14613]
[1731763785691,0.29286196,3179.0,3178.5,3.14613]
[1731763785995,0.29286196,3178.9,3178.5,3.14607]
[1731763786197,0.29286196,3178.8,3177.9,3.14667]
[1731763786420,3.14559,3179.1,3178.4,3.14623]
[1731763786735,0.01,3179.7,3178.4,3.14623]
[1731763786736,3.43840676,3179.0,3178.4,3.14623]
[1731763786909,0.29274676,3178.9,3178.4,3.14623]
[1731763787104,3.14566,3179.0,3178.4,3.14623]
[1731763787321,0.2927342,3178.9,3178.4,3.14623]
[1731763787509,3.14566,3179.0,3178.4,3.14623]
[1731763787709,0.29263843,3178.9,3178.4,3.14623]
[1731763787907,0.29263843,3178.9,3178.4,3.775493]
[1731763788136,3.14549,3179.2,3178.4,3.775493]
[1731763788421,0.29263369,3179.1,3178.4,3.775493]
[1731763788623,0.29263369,3179.0,3178.4,3.775493]
[1731763788936,0.29263369,3178.9,3178.4,3.775493]
[1731763789136,0.29263369,3179.0,3178.4,3.775493]
[1731763789337,0.29263369,3178.9,3178.4,3.775493]
[1731763789639,0.29263369,3179.0,3178.4,3.775493]
[1731763789793,0.29263369,3178.9,3178.4,3.775493]
[1731763789998,3.14585,3178.8,3178.0,0.67805316]
[1731763790198,3.14585,3178.8,3178.1,6.14651]
[1731763790398,3.14583,3178.9,3178.1,6.14651]
[1731763790596,3.14594,3178.7,3178.1,6.14651]
[1731763790823,3.14594,3178.7,3178.1,6.761161]
[1731763791019,3.14594,3178.7,3178.1,3.614651]
[1731763791422,3.14583,3178.9,3178.1,3.614651]
[1731763791632,3.14617,3178.5,3177.8,3.1468]
[1731763791842,3.14617,3178.5,3177.7,35.23]
[1731763791843,3.14617,3178.5,3177.7,3.14691]
[1731763792044,0.29271091,3178.4,3177.7,3.14691]
[1731763792339,0.29271091,3178.3,3177.7,3.14691]
[1731763792549,3.1464,3178.3,3177.7,0.93036256]
[1731763792705,0.29270552,3178.2,3177.6,3.14702]
[1731763793025,3.1464,3178.3,3177.8,3.0]
[1731763793421,0.29271613,3178.2,3177.8,3.0]
[1731763793618,3.14569,3179.0,3178.9,43.70743]
[1731763793940,3.43838575,3179.0,3178.9,43.70743]
[1731763794467,0.29269575,3179.0,3178.9,43.70743]
[1731763795110,3.43833575,3179.0,3178.9,43.70743]
[1731763800163,0.29269575,3179.0,3178.9,43.70743]
[1731763800321,0.29269575,3179.0,3178.9,46.84842947]
[1731763800524,3.44833575,3179.0,3178.9,43.70743]
[1731763800757,3.43833575,3179.0,3178.9,43.70743]
[1731763801152,3.99833575,3179.0,3178.9,43.70743]
[1731763802426,6.71564,3179.0,3178.9,43.70743]
[1731763802739,7.00859832,3179.0,3178.9,43.70743]
[1731763802919,7.00859832,3179.0,3178.9,34.6753247]
[1731763803122,7.00859832,3179.0,3178.9,34.43221738]